[Event "DVM U12 2019"]
[Site "Magedburg"]
[Date "2019.12.28"]
[Round "3"]
[White "Richter, Nicholas"]
[Black "Vecera, Fabio"]
[Result "1/2-1/2"]
[ECO "D35"]
[WhiteElo "1448"]
[BlackElo "1529"]
[Annotator "NA"]
[PlyCount "110"]
[EventDate "2019.12.27"]
[EventType "team-tourn"]
[EventRounds "7"]
[EventCountry "GER"]
[SourceTitle "playchess.com"]
[Source "ChessBase"]
[SourceQuality "1"]
[WhiteTeam "USV TU Dresden"]
[BlackTeam "BSG Grün-Weiß Leipzig"]
[WhiteTeamCountry "GER"]
[BlackTeamCountry "GER"]
[TimeControl "40/5400+30:1800+30"]

1. d4 {[%emt 0:00:00]} d5 {[%emt 0:00:00]} 2. c4 {[%emt 0:00:46]} e6 {[%emt 0:00:00]} 3. Nc3 {[%emt 0:01:22]} Nf6 {[%emt 0:00:39]} 4. cxd5 {[%emt 0:01:52]} exd5 {[%emt 0:01:28]} 5. Bg5 {[%emt 0:02:09]} Be7 {[%emt 0:00:27]} 6. e3 {[%emt 0:01:37]} O-O {[%emt 0:00:22]} 7. Bd3 {[%emt 0:02:12]} Nbd7 {[%emt 0:01:58]} 8. Qc2 {[%emt 0:01:56]} c6 {[%emt 0:00:34]} 9. h3 {[%emt 0:01:49]} h6 {[%emt 0:01:07]} 10. Bf4 {[%emt 0:06:22]} Re8 {[%emt 0:11:20]} 11. Nf3 {[%emt 0:05:46]} Nh5 {[%emt 0:07:53]} 12. Bh2 {[%emt 0:02:23]} Nb6 {[%emt 0:01:41]} 13. Be2 {[%emt 0:04:30]} Bb4 {[%emt 0:08:06]} 14. a3 Be7 {[%emt 0:01:31]} 15. Ne5 {[%emt 0:06:20]} Nf6 {[%emt 0:00:11]} 16. O-O {[%emt 0:02:28]} Bd6 {[%emt 0:00:44]} 17. Rac1 {[%emt 0:04:19]} Be6 {[%emt 0:04:49]} 18. Kh1 {[%emt 0:03:34]} Rc8 {[%emt 0:09:28]} 19. Rfd1 {[%emt 0:04:31]} Nbd7 {[%emt 0:09:21]} 20. Nxf7 {[%emt 0:01:56]} Bxf7 {[%emt 0:03:01]} 21. Bxd6 {[%emt 0:00:21]} Ne4 {[%emt 0:01:00]} 22. Nxe4 {[%emt 0:00:39]} Rxe4 {[%emt 0:00:26]} 23. Bd3 {[%emt 0:01:39]} Re6 {[%emt 0:00:33]} 24. Bg3 {[%emt 0:00:13]} Bh5 {[%emt 0:00:50]} 25. Rf1 {[%emt 0:01:54]} g6 {[%emt 0:04:52]} 26. Bh2 {[%emt 0:03:08]} g5 {[%emt 0:03:46]} 27. Qb3 {[%emt 0:00:36]} Rf6 {[%emt 0:04:45]} 28. Bg3 {[%emt 0:03:32]} Nb6 {[%emt 0:02:22]} 29. Qc2 {[%emt 0:01:42]} Qf8 {[%emt 0:00:38]} 30. Bh7+ {[%emt 0:01:26]} Kh8 {[%emt 0:00:20]} 31. Be5 {[%emt 0:00:13]} Be2 {[%emt 0:02:04]} 32. Bxf6+ {[%emt 0:02:33]} Qxf6 {[%emt 0:00:17]} 33. Qxe2 {[%emt 0:00:27]} Kxh7 {[%emt 0:00:06]} 34. Qf3 {[%emt 0:00:52]} Qg6 {[%emt 0:00:54]} 35. Qe2 {[%emt 0:00:14]} Qf6 {[%emt 0:00:45]} 36. Rcd1 {[%emt 0:02:29]} Nc4 {[%emt 0:00:40]} 37. a4 {[%emt 0:01:34]} Rf8 {[%emt 0:00:45]} 38. b3 {[%emt 0:01:28]} Nd6 {[%emt 0:00:28]} 39. Qd3+ {[%emt 0:00:11]} Kg7 {[%emt 0:00:23]} 40. f3 {[%emt 0:02:05]} Re8 {[%emt 0:01:11]} 41. e4 {[%emt 0:30:57]} Qf4 {[%emt 0:32:33]} 42. Rde1 {[%emt 0:03:08]} a6 {[%emt 0:01:28]} 43. Kg1 {[%emt 0:01:35]} Qh4 {[%emt 0:03:20]} 44. e5 {[%emt 0:03:27]} h5 {[%emt 0:01:40]} 45. Re3 {[%emt 0:03:32]} Qf4 {[%emt 0:00:34]} 46. Rfe1 {[%emt 0:07:14]} Nf5 {[%emt 0:00:22]} 47. Qc3 {[%emt 0:02:10]} Nxe3 {[%emt 0:00:37]} 48. Qxe3 {[%emt 0:00:02]} Re6 {[%emt 0:01:35]} 49. Qxf4 {[%emt 0:00:16]} gxf4 {[%emt 0:00:01]} 50. Kf2 {[%emt 0:00:13]} h4 {[%emt 0:00:09]} 51. Rb1 {[%emt 0:00:34]} b6 {[%emt 0:01:22]} 52. b4 {[%emt 0:00:49]} Kf7 {[%emt 0:02:52]} 53. b5 {[%emt 0:00:58]} a5 {[%emt 0:01:26]} 54. bxc6 {[%emt 0:00:56]} Rxc6 {[%emt 0:00:01]} 55. Rb5 {[%emt 0:00:08]} Ke6 {[%emt 0:00:16] normal} 1/2-1/2

[Event "DVM U12 2019"]
[Site "Magedburg"]
[Date "2019.12.28"]
[Round "3"]
[White "Struebel, Tobias"]
[Black "Spranger, Tobias"]
[Result "0-1"]
[ECO "D32"]
[WhiteElo "1379"]
[BlackElo "1390"]
[Annotator "NA"]
[PlyCount "46"]
[EventDate "2019.12.27"]
[EventType "team-tourn"]
[EventRounds "7"]
[EventCountry "GER"]
[SourceTitle "playchess.com"]
[Source "ChessBase"]
[SourceQuality "1"]
[WhiteTeam "Schachzentrum Bemerode"]
[BlackTeam "SV Empor Berlin"]
[WhiteTeamCountry "GER"]
[BlackTeamCountry "GER"]
[TimeControl "40/5400+30:1800+30"]

1. d4 {[%emt 0:00:00]} d5 {[%emt 0:00:00]} 2. c4 {[%emt 0:00:00]} e6 {[%emt 0:00:00]} 3. Nc3 {[%emt 0:00:00]} c5 {[%emt 0:00:00]} 4. dxc5 {[%emt 0:00:20]} d4 {[%emt 0:00:11]} 5. Ne4 {[%emt 0:00:29]} f5 {[%emt 0:01:01]} 6. Nd2 {[%emt 0:00:44]} Bxc5 {[%emt 0:00:27]} 7. Nb3 {[%emt 0:00:24]} Bb4+ {[%emt 0:00:41]} 8. Bd2 {[%emt 0:00:23]} Bxd2+ {[%emt 0:00:11]} 9. Qxd2 {[%emt 0:00:16]} Nc6 {[%emt 0:00:18]} 10. Nf3 {[%emt 0:02:37]} e5 {[%emt 0:00:35]} 11. Rd1 {[%emt 0:01:00]} Nf6 {[%emt 0:00:31]} 12. e3 {[%emt 0:01:50]} O-O {[%emt 0:04:42]} 13. exd4 {[%emt 0:01:13]} exd4 {[%emt 0:00:45]} 14. Nbxd4 {[%emt 0:00:16]} Nxd4 {[%emt 0:01:41]} 15. Nxd4 {[%emt 0:00:24]} Ne4 {[%emt 0:00:19]} 16. Qc2 {[%emt 0:02:38]} Qa5+ {[%emt 0:00:44]} 17. Ke2 {[%emt 0:04:30]} Qe5 {[%emt 0:02:49]} 18. f3 {[%emt 0:01:45]} Nc3+ {[%emt 0:01:20]} 19. Kf2 {[%emt 0:00:21]} Nxd1+ {[%emt 0:00:17]} 20. Qxd1 {[%emt 0:00:06]} Rd8 {[%emt 0:00:56] normal} 21. Nc6 {[%emt 0:04:37] normal} Qc5+ {[%emt 0:00:35] normal} 22. Nd4 {[%emt 0:00:09]} Rxd4 {[%emt 0:00:51] normal} 23. b4 {[%emt 0:01:24]} Rd2+ {[%emt 0:00:27] normal} 0-1

[Event "DVM U12 2019"]
[Site "Magedburg"]
[Date "2019.12.28"]
[Round "4"]
[White "Nitsche, Nikolai"]
[Black "Fuhrmann, Bahne"]
[Result "1/2-1/2"]
[ECO "A45"]
[WhiteElo "1808"]
[BlackElo "1603"]
[Annotator "NA"]
[PlyCount "77"]
[EventDate "2019.12.27"]
[EventType "team-tourn"]
[EventRounds "7"]
[EventCountry "GER"]
[SourceTitle "playchess.com"]
[Source "ChessBase"]
[SourceQuality "1"]
[WhiteTeam "SV Empor Berlin"]
[BlackTeam "Hamburger SK"]
[WhiteTeamCountry "GER"]
[BlackTeamCountry "GER"]
[TimeControl "40/5400+30:1800+30"]

1. d4 {[%emt 0:00:00]} Nf6 {[%emt 0:00:00]} 2. Bf4 {[%emt 0:00:09]} d5 3. e3 {[%emt 0:00:14]} e6 {[%emt 0:00:00]} 4. c4 {[%emt 0:01:37]} c5 {[%emt 0:05:13]} 5. Nf3 {[%emt 0:02:34]} Bd6 {[%emt 0:01:09]} 6. Bg3 {[%emt 0:00:39]} cxd4 {[%emt 0:02:27]} 7. Nxd4 {[%emt 0:00:58]} Bb4+ {[%emt 0:01:02]} 8. Nc3 {[%emt 0:00:21]} Qa5 {[%emt 0:03:15]} 9. Ndb5 {[%emt 0:01:55]} Na6 {[%emt 0:11:18]} 10. a3 {[%emt 0:01:16]} Bxc3+ {[%emt 0:00:42]} 11. Nxc3 {[%emt 0:00:20]} Ne4 {[%emt 0:03:01]} 12. Be5 {[%emt 0:00:25]} f6 {[%emt 0:02:26]} 13. b4 {[%emt 0:01:13]} Nxc3 {[%emt 0:11:56]} 14. Bxc3 {[%emt 0:00:04]} Qd8 {[%emt 0:02:42]} 15. cxd5 {[%emt 0:01:03]} Qxd5 {[%emt 0:01:51]} 16. Qxd5 {[%emt 0:00:46]} exd5 {[%emt 0:00:04]} 17. O-O-O {[%emt 0:00:12]} Nc7 {[%emt 0:01:59]} 18. Be2 {[%emt 0:02:48]} Bf5 {[%emt 0:05:51]} 19. Kb2 {[%emt 0:11:35]} O-O {[%emt 0:05:59]} 20. Bf3 {[%emt 0:01:15]} Rfd8 {[%emt 0:02:32]} 21. Rd2 {[%emt 0:00:31]} Rd7 {[%emt 0:04:00]} 22. Rhd1 {[%emt 0:03:41]} Rad8 {[%emt 0:01:06]} 23. a4 {[%emt 0:03:37]} Be6 {[%emt 0:04:28]} 24. b5 {[%emt 0:02:29]} b6 {[%emt 0:07:00]} 25. Ka3 {[%emt 0:00:55]} Rc8 {[%emt 0:06:48]} 26. Bb4 {[%emt 0:05:20]} a5 {[%emt 0:03:52]} 27. bxa6 {[%emt 0:00:54]} Nxa6 {[%emt 0:00:08]} 28. Bxd5 {[%emt 0:09:53]} Bxd5 {[%emt 0:00:28]} 29. Rxd5 {[%emt 0:00:06]} Rxd5 {[%emt 0:00:24]} 30. Rxd5 {[%emt 0:00:10]} Rc2 {[%emt 0:05:49]} 31. Rd6 {[%emt 0:00:57]} Nxb4 {[%emt 0:02:02]} 32. Kxb4 {[%emt 0:00:07]} Rxf2 {[%emt 0:01:06]} 33. Rxb6 {[%emt 0:00:05]} Rb2+ {[%emt 0:00:31]} 34. Kc5 {[%emt 0:01:56]} Ra2 {[%emt 0:00:15]} 35. Kb5 {[%emt 0:00:13]} Rb2+ {[%emt 0:00:18]} 36. Kc5 {[%emt 0:00:14]} Ra2 {[%emt 0:00:19]} 37. Kb5 {[%emt 0:00:08]} Rb2+ {[%emt 0:00:09]} 38. Kc5 Ra2 39. Ra6 {normal} 1/2-1/2

[Event "DVM U12 2019"]
[Site "Magedburg"]
[Date "2019.12.28"]
[Round "4"]
[White "Kageler, Anton Paul"]
[Black "Kempe, Caius Emilian"]
[Result "1/2-1/2"]
[ECO "B35"]
[WhiteElo "1777"]
[BlackElo "1832"]
[Annotator "NA"]
[PlyCount "89"]
[EventDate "2019.12.27"]
[EventType "team-tourn"]
[EventRounds "7"]
[EventCountry "GER"]
[SourceTitle "playchess.com"]
[Source "ChessBase"]
[SourceQuality "1"]
[WhiteTeam "SV Roter Turm Halle"]
[BlackTeam "USV TU Dresden"]
[WhiteTeamCountry "GER"]
[BlackTeamCountry "GER"]
[TimeControl "40/5400+30:1800+30"]

1. e4 {[%emt 0:00:00]} c5 {[%emt 0:00:00]} 2. Nf3 {[%emt 0:00:00]} g6 {[%emt 0:00:00]} 3. d4 {[%emt 0:00:00]} cxd4 {[%emt 0:00:00]} 4. Nxd4 {[%emt 0:00:00]} Nc6 {[%emt 0:00:00]} 5. Nc3 {[%emt 0:00:00]} Bg7 {[%emt 0:00:05]} 6. Be3 {[%emt 0:00:04]} Nf6 {[%emt 0:00:05]} 7. Bc4 {[%emt 0:00:05]} O-O {[%emt 0:00:05]} 8. Bb3 {[%emt 0:00:04]} Re8 {[%emt 0:00:06]} 9. f3 {[%emt 0:00:11]} e6 {[%emt 0:00:42]} 10. f4 {[%emt 0:00:04]} a6 {[%emt 0:00:25]} 11. Qf3 {[%emt 0:01:09]} d5 {[%emt 0:01:58]} 12. e5 {[%emt 0:01:35]} Nd7 {[%emt 0:00:16]} 13. O-O {[%emt 0:13:12]} Na5 {[%emt 0:04:20]} 14. Rad1 {[%emt 0:08:33]} Nb6 {[%emt 0:15:15]} 15. Na4 {[%emt 0:13:05]} Nxa4 {[%emt 0:04:05]} 16. Bxa4 {[%emt 0:02:55]} b5 {[%emt 0:00:32]} 17. Bb3 {[%emt 0:00:46]} Bb7 {[%emt 0:00:39]} 18. Kh1 {[%emt 0:03:48]} Qe7 {[%emt 0:06:07]} 19. c3 {[%emt 0:04:00]} Rac8 {[%emt 0:05:19]} 20. Rc1 {[%emt 0:12:17]} Red8 {[%emt 0:07:41]} 21. Qe2 {[%emt 0:05:55]} Rc7 {[%emt 0:01:55]} 22. Rc2 {[%emt 0:02:51]} Nxb3 {[%emt 0:12:59]} 23. axb3 {[%emt 0:06:02]} Rdc8 {[%emt 0:00:44]} 24. b4 {[%emt 0:03:54]} Bf8 {[%emt 0:01:23]} 25. Qg4 {[%emt 0:02:33]} Bg7 {[%emt 0:04:14]} 26. Rcc1 {[%emt 0:03:02]} Ra8 {[%emt 0:05:44]} 27. Ra1 {[%emt 0:00:07]} Qe8 {[%emt 0:01:02]} 28. Rf3 {[%emt 0:02:32]} Qe7 {[%emt 0:01:40]} 29. Bf2 {[%emt 0:00:55]} h5 {[%emt 0:02:09]} 30. Qh3 {[%emt 0:01:58]} Kh7 {[%emt 0:01:03]} 31. g4 {[%emt 0:02:14]} Rh8 {[%emt 0:00:21]} 32. Rg1 {[%emt 0:03:02]} Kg8 {[%emt 0:01:55]} 33. gxh5 Rxh5 {[%emt 0:00:20]} 34. Qg4 {[%emt 0:03:23]} Bc8 {[%emt 0:02:42]} 35. Rh3 {[%emt 0:01:18]} Rxh3 {[%emt 0:04:36]} 36. Qxh3 {[%emt 0:00:06]} Qe8 {[%emt 0:05:13]} 37. Qg4 {[%emt 0:01:53]} f6 {[%emt 0:04:46]} 38. Qxg6 {[%emt 0:01:30]} Qxg6 {[%emt 0:00:28]} 39. Rxg6 {[%emt 0:00:07]} Kf7 {[%emt 0:00:04]} 40. Rg3 {[%emt 0:01:09]} fxe5 {[%emt 0:00:30]} 41. fxe5 {[%emt 0:30:08]} Bxe5 {[%emt 0:30:11]} 42. Rf3+ {[%emt 0:00:09]} Ke7 {[%emt 0:00:25]} 43. Bg3 {[%emt 0:00:21]} Bxg3 {[%emt 0:00:29]} 44. hxg3 {[%emt 0:00:26]} e5 {[%emt 0:00:36]} 45. Re3 {[%emt 0:00:56] normal} 1/2-1/2

[Event "DVM U12 2019"]
[Site "Magedburg"]
[Date "2019.12.28"]
[Round "4"]
[White "Bock, Marlon"]
[Black "von Mettenheim, Johannes"]
[Result "0-1"]
[ECO "B12"]
[WhiteElo "1708"]
[BlackElo "1971"]
[Annotator "NA"]
[PlyCount "48"]
[EventDate "2019.12.27"]
[EventType "team-tourn"]
[EventRounds "7"]
[EventCountry "GER"]
[SourceTitle "playchess.com"]
[Source "ChessBase"]
[SourceQuality "1"]
[WhiteTeam "SSV Vimaria 91 Weimar"]
[BlackTeam "Schachzentrum Bemerode"]
[BlackTeamCountry "GER"]
[TimeControl "40/5400+30:1800+30"]

1. e4 {[%emt 0:00:00]} c6 {[%emt 0:00:00]} 2. d4 {[%emt 0:00:00]} d5 {[%emt 0:00:00]} 3. e5 {[%emt 0:00:00]} c5 {[%emt 0:00:00]} 4. dxc5 {[%emt 0:00:00]} Nc6 {[%emt 0:00:00]} 5. f4 {[%emt 0:00:37]} e6 {[%emt 0:16:12]} 6. Be3 {[%emt 0:03:55]} d4 {[%emt 0:04:42]} 7. Bf2 {[%emt 0:00:24]} Bxc5 {[%emt 0:00:02]} 8. a3 {[%emt 0:07:30]} f6 {[%emt 0:02:12]} 9. Bd3 {[%emt 0:12:47]} g6 {[%emt 0:15:35]} 10. Nf3 {[%emt 0:02:04]} fxe5 {[%emt 0:02:09]} 11. fxe5 {[%emt 0:00:13]} Nh6 {[%emt 0:00:23]} 12. Bh4 {[%emt 0:10:53]} Qc7 {[%emt 0:02:32]} 13. Qe2 {[%emt 0:03:24]} Ng4 {[%emt 0:09:57]} 14. Bg3 {[%emt 0:02:19]} Bf8 {[%emt 0:03:36]} 15. Nxd4 {[%emt 0:10:42]} Nxd4 {[%emt 0:03:05]} 16. Qxg4 {[%emt 0:00:23]} Nxc2+ {[%emt 0:01:13]} 17. Bxc2 {[%emt 0:00:11]} Qxc2 {[%emt 0:00:05]} 18. O-O {[%emt 0:07:32]} Bc5+ {[%emt 0:02:05]} 19. Bf2 {[%emt 0:01:51]} O-O {[%emt 0:01:05]} 20. Bd4 {[%emt 0:02:25]} Rxf1+ {[%emt 0:00:37]} 21. Kxf1 {[%emt 0:00:06]} Qd3+ {[%emt 0:00:09]} 22. Ke1 {[%emt 0:02:15]} Qxd4 {[%emt 0:00:09]} 23. Qg5 {[%emt 0:00:41]} Qxb2 {[%emt 0:00:26]} 24. Qd8+ {[%emt 0:00:16]} Bf8 {[%emt 0:00:06] normal} 0-1

[Event "DVM U12 2019"]
[Site "Magedburg"]
[Date "2019.12.28"]
[Round "4"]
[White "Krüger, Arthur"]
[Black "Freude, Max"]
[Result "0-1"]
[ECO "A45"]
[WhiteElo "1693"]
[BlackElo "1809"]
[Annotator "NA"]
[PlyCount "32"]
[EventDate "2019.12.27"]
[EventType "team-tourn"]
[EventRounds "7"]
[EventCountry "GER"]
[SourceTitle "playchess.com"]
[Source "ChessBase"]
[SourceQuality "1"]
[WhiteTeam "Hamburger SK"]
[BlackTeam "SV Empor Berlin"]
[BlackTeamCountry "GER"]
[TimeControl "40/5400+30:1800+30"]

1. d4 {[%emt 0:00:00]} Nf6 {[%emt 0:00:00]} 2. Bf4 {[%emt 0:00:00]} d5 {[%emt 0:01:42]} 3. e3 {[%emt 0:00:08]} c5 {[%emt 0:00:08]} 4. c3 {[%emt 0:00:54]} Nc6 {[%emt 0:00:20]} 5. Nd2 {[%emt 0:00:43]} Bf5 {[%emt 0:01:01]} 6. Ngf3 {[%emt 0:01:57]} e6 {[%emt 0:00:30]} 7. Be2 {[%emt 0:04:29]} Bd6 {[%emt 0:00:20]} 8. Bg3 {[%emt 0:00:32]} O-O {[%emt 0:00:54]} 9. Ne5 {[%emt 0:02:45]} Rc8 {[%emt 0:03:30]} 10. f4 {[%emt 0:02:53]} a6 {[%emt 0:04:44]} 11. Bh4 {[%emt 0:07:29]} cxd4 {[%emt 0:03:10]} 12. exd4 {[%emt 0:02:19]} Be7 {[%emt 0:01:56]} 13. g4 {[%emt 0:05:32]} Nxe5 {[%emt 0:07:58]} 14. fxe5 {[%emt 0:01:38]} Nxg4 {[%emt 0:00:09]} 15. Bxg4 {[%emt 0:11:03]} Bxh4+ {[%emt 0:00:31]} 16. Kf1 {[%emt 0:00:32]} f6 {[%emt 0:03:21] normal} 0-1

[Event "DVM U12 2019"]
[Site "Magedburg"]
[Date "2019.12.28"]
[Round "4"]
[White "Tietz, Bennit"]
[Black "Freude, Paul"]
[Result "1-0"]
[ECO "B52"]
[WhiteElo "1637"]
[BlackElo "1491"]
[Annotator "NA"]
[PlyCount "71"]
[EventDate "2019.12.27"]
[EventType "team-tourn"]
[EventRounds "7"]
[EventCountry "GER"]
[SourceTitle "playchess.com"]
[Source "ChessBase"]
[SourceQuality "1"]
[WhiteTeam "Hamburger SK"]
[BlackTeam "SV Empor Berlin"]
[WhiteTeamCountry "GER"]
[BlackTeamCountry "GER"]
[TimeControl "40/5400+30:1800+30"]

1. e4 {[%emt 0:00:00]} c5 {[%emt 0:00:00]} 2. Nf3 {[%emt 0:00:00]} d6 {[%emt 0:00:00]} 3. Bb5+ {[%emt 0:00:02]} Bd7 {[%emt 0:01:58]} 4. Bxd7+ {[%emt 0:00:20]} Nxd7 {[%emt 0:00:10]} 5. O-O {[%emt 0:00:29]} Ngf6 {[%emt 0:00:18]} 6. Re1 {[%emt 0:01:09]} e6 {[%emt 0:01:38]} 7. c3 {[%emt 0:02:24]} Be7 {[%emt 0:00:18]} 8. d4 {[%emt 0:01:56]} O-O {[%emt 0:00:53]} 9. Nbd2 {[%emt 0:05:38]} Rc8 {[%emt 0:02:08]} 10. Nf1 {[%emt 0:10:08]} a6 {[%emt 0:03:52]} 11. Ng3 {[%emt 0:01:40]} b5 {[%emt 0:02:05]} 12. d5 {[%emt 0:06:00]} e5 {[%emt 0:02:29]} 13. Nf5 {[%emt 0:06:43]} Re8 {[%emt 0:02:39]} 14. Nxe7+ {[%emt 0:00:40]} Rxe7 {[%emt 0:01:54]} 15. Nh4 {[%emt 0:00:44]} g6 {[%emt 0:01:51]} 16. Bh6 {[%emt 0:06:39]} Re8 {[%emt 0:01:10]} 17. Qd2 {[%emt 0:05:47]} Kh8 {[%emt 0:02:25]} 18. Nf3 {[%emt 0:06:02]} c4 {[%emt 0:02:59]} 19. Ng5 {[%emt 0:02:47]} Kg8 {[%emt 0:01:16]} 20. Qe3 {[%emt 0:04:10]} Qb6 {[%emt 0:05:48]} 21. Qf3 {[%emt 0:01:06]} Qd8 {[%emt 0:03:44]} 22. Qe3 {[%emt 0:02:18]} Qb6 {[%emt 0:01:00]} 23. Qf3 {[%emt 0:00:58]} Qd8 {[%emt 0:00:23]} 24. Nh3 {[%emt 0:01:13]} a5 {[%emt 0:02:29]} 25. a3 {[%emt 0:02:37]} Rb8 {[%emt 0:02:16]} 26. Bg5 {[%emt 0:01:49]} Kg7 {[%emt 0:03:03]} 27. Bh4 {[%emt 0:02:24]} Qe7 {[%emt 0:02:15]} 28. Qe3 {[%emt 0:02:41]} Nc5 {[%emt 0:02:35]} 29. f4 {[%emt 0:01:45]} exf4 {[%emt 0:04:29]} 30. Nxf4 {[%emt 0:02:31]} Ncxe4 {[%emt 0:15:51]} 31. Qf3 {[%emt 0:07:32]} Qa7+ {[%emt 0:00:35]} 32. Kh1 {[%emt 0:01:15]} Nd2 {[%emt 0:05:02]} 33. Bxf6+ {[%emt 0:04:10]} Kxf6 {[%emt 0:06:33]} 34. Nh5+ {[%emt 0:00:32]} Kg5 {[%emt 0:00:58]} 35. h4+ {[%emt 0:00:35]} Kh6 {[%emt 0:05:06]} 36. Qf4+ {[%emt 0:00:23] normal} 1-0

[Event "DVM U12 2019"]
[Site "Magedburg"]
[Date "2019.12.28"]
[Round "4"]
[White "Espig, Nils"]
[Black "Rumpold, Jaron"]
[Result "1-0"]
[ECO "B56"]
[WhiteElo "1596"]
[BlackElo "1123"]
[Annotator "NA"]
[PlyCount "91"]
[EventDate "2019.12.27"]
[EventType "team-tourn"]
[EventRounds "7"]
[EventCountry "GER"]
[SourceTitle "playchess.com"]
[Source "ChessBase"]
[SourceQuality "1"]
[WhiteTeam "USV TU Dresden"]
[BlackTeam "SV Roter Turm Halle"]
[WhiteTeamCountry "GER"]
[BlackTeamCountry "GER"]
[TimeControl "40/5400+30:1800+30"]

1. e4 {[%emt 0:00:00]} c5 {[%emt 0:00:00]} 2. Nf3 {[%emt 0:00:00]} d6 {[%emt 0:00:00]} 3. d4 {[%emt 0:00:00]} cxd4 {[%emt 0:00:02]} 4. Nxd4 {[%emt 0:00:08]} Nf6 {[%emt 0:00:06]} 5. Nc3 {[%emt 0:00:46]} Nc6 {[%emt 0:00:13]} 6. f3 {[%emt 0:00:39]} e5 {[%emt 0:01:13]} 7. Nb3 {[%emt 0:00:45]} Be7 {[%emt 0:01:04]} 8. Be3 {[%emt 0:01:17]} O-O {[%emt 0:00:23]} 9. Qd2 {[%emt 0:01:46]} Be6 {[%emt 0:01:00]} 10. h4 {[%emt 0:02:42]} d5 {[%emt 0:04:53]} 11. exd5 {[%emt 0:01:13]} Nxd5 {[%emt 0:00:58]} 12. Nxd5 {[%emt 0:01:22]} Bxd5 {[%emt 0:08:11]} 13. O-O-O {[%emt 0:06:32]} Be6 {[%emt 0:02:48]} 14. g3 {[%emt 0:08:56]} Qxd2+ {[%emt 0:01:41]} 15. Rxd2 {[%emt 0:00:18]} a5 {[%emt 0:01:19]} 16. Kb1 {[%emt 0:04:24]} Rfd8 {[%emt 0:07:23]} 17. Rxd8+ {[%emt 0:02:10]} Rxd8 {[%emt 0:00:06]} 18. Be2 {[%emt 0:00:19]} Rb8 {[%emt 0:11:22]} 19. Bb6 {[%emt 0:02:48]} a4 {[%emt 0:02:51]} 20. Nc5 {[%emt 0:02:06]} Bxc5 {[%emt 0:01:23]} 21. Bxc5 {[%emt 0:00:15]} b5 {[%emt 0:01:54]} 22. Rd1 {[%emt 0:01:45]} Na5 {[%emt 0:10:28]} 23. Bxb5 {[%emt 0:04:25]} g6 {[%emt 0:04:43]} 24. Bxa4 {[%emt 0:00:51]} Rc8 {[%emt 0:02:06]} 25. Bf2 {[%emt 0:01:44]} Bf5 {[%emt 0:02:16]} 26. g4 {[%emt 0:01:03]} Be6 {[%emt 0:00:44]} 27. Bb3 {[%emt 0:00:15]} Nxb3 {[%emt 0:01:29]} 28. axb3 {[%emt 0:00:23]} f5 {[%emt 0:00:31]} 29. Re1 {[%emt 0:02:37]} fxg4 {[%emt 0:01:41]} 30. fxg4 {[%emt 0:00:07]} Bxg4 {[%emt 0:00:26]} 31. Rxe5 {[%emt 0:00:21]} Bf5 {[%emt 0:00:50]} 32. Rc5 {[%emt 0:00:40]} Re8 {[%emt 0:01:01]} 33. Kc1 {[%emt 0:01:48]} Re2 {[%emt 0:02:06]} 34. Bg3 {[%emt 0:02:28]} Rg2 {[%emt 0:04:42]} 35. Bf4 {[%emt 0:03:14]} Rg1+ {[%emt 0:01:49]} 36. Kd2 {[%emt 0:00:43]} Rg2+ {[%emt 0:01:50]} 37. Ke3 {[%emt 0:00:40]} Bxc2 {[%emt 0:03:49]} 38. Kf3 {[%emt 0:00:16]} Be4+ {[%emt 0:02:41]} 39. Kxe4 {[%emt 0:00:20]} Rxb2 {[%emt 0:00:39]} 40. Rc8+ {[%emt 0:01:05]} Kf7 {[%emt 0:00:18]} 41. Rb8 {[%emt 0:30:07]} Re2+ {[%emt 0:31:36]} 42. Kd3 {[%emt 0:00:52]} Re8 {[%emt 0:00:32]} 43. Rxe8 {[%emt 0:00:09]} Kxe8 {[%emt 0:00:11]} 44. Ke4 {[%emt 0:00:21]} Ke7 {[%emt 0:00:33]} 45. Ke5 {[%emt 0:00:23]} Kf7 {[%emt 0:01:07]} 46. b4 {[%emt 0:00:12] normal} 1-0

[Event "DVM U12 2019"]
[Site "Magedburg"]
[Date "2019.12.28"]
[Round "4"]
[White "Rehbein, Vitus"]
[Black "Krömer, Emanuel"]
[Result "1/2-1/2"]
[ECO "B01"]
[WhiteElo "1547"]
[BlackElo "1459"]
[Annotator "NA"]
[PlyCount "71"]
[EventDate "2019.12.27"]
[EventType "team-tourn"]
[EventRounds "7"]
[EventCountry "GER"]
[SourceTitle "playchess.com"]
[Source "ChessBase"]
[SourceQuality "1"]
[WhiteTeam "Schachzentrum Bemerode"]
[BlackTeam "SSV Vimaria 91 Weimar"]
[WhiteTeamCountry "GER"]
[TimeControl "40/5400+30:1800+30"]

1. e4 {[%emt 0:00:00]} d5 {[%emt 0:00:00]} 2. Nc3 {[%emt 0:01:23]} d4 {[%emt 0:00:00]} 3. Nce2 {[%emt 0:06:17]} e5 {[%emt 0:00:28]} 4. Ng3 {[%emt 0:01:01]} Nf6 {[%emt 0:02:20]} 5. Bc4 {[%emt 0:02:57]} Nc6 {[%emt 0:05:04]} 6. d3 {[%emt 0:01:58]} Qd6 {[%emt 0:20:23]} 7. a3 {[%emt 0:02:16]} a6 {[%emt 0:06:41]} 8. h3 {[%emt 0:06:25]} b5 {[%emt 0:06:57]} 9. Bb3 {[%emt 0:02:03]} Be7 {[%emt 0:04:33]} 10. N1e2 {[%emt 0:02:37]} Nb8 {[%emt 0:01:08]} 11. f4 {[%emt 0:03:12]} Nbd7 {[%emt 0:03:00]} 12. Nf5 {[%emt 0:00:57]} Qb6 {[%emt 0:02:26]} 13. Nxg7+ {[%emt 0:07:36]} Kd8 {[%emt 0:03:22]} 14. Nf5 {[%emt 0:01:13]} Ke8 15. fxe5 {[%emt 0:08:40]} Nxe5 {[%emt 0:05:09]} 16. Nfxd4 {[%emt 0:02:29]} c5 {[%emt 0:03:20]} 17. Nf3 {[%emt 0:03:00]} Nxf3+ {[%emt 0:01:26]} 18. gxf3 Rg8 {[%emt 0:01:15]} 19. Be3 {[%emt 0:01:33]} Qc6 {[%emt 0:02:31]} 20. c4 {[%emt 0:01:22]} Bf5 {[%emt 0:02:36]} 21. Nf4 {[%emt 0:12:13]} Nxe4 {[%emt 0:08:17]} 22. cxb5 {[%emt 0:04:08]} Bh4+ {[%emt 0:00:12]} 23. Ke2 {[%emt 0:04:55]} Ng3+ {[%emt 0:01:15]} 24. Kd2 {[%emt 0:00:50]} Qf6 {[%emt 0:01:40]} 25. Qc2 {[%emt 0:04:45]} Nxh1 {[%emt 0:04:23]} 26. Rxh1 {[%emt 0:00:20]} Rd8 {[%emt 0:02:36]} 27. bxa6 {[%emt 0:02:58]} Qxa6 {[%emt 0:00:41]} 28. Ba4+ {[%emt 0:01:31]} Bd7 {[%emt 0:00:52]} 29. Bxd7+ {[%emt 0:00:59]} Rxd7 {[%emt 0:00:09]} 30. Qxc5 {[%emt 0:00:29]} Rg2+ {[%emt 0:00:25]} 31. Nxg2 {[%emt 0:01:44]} Qxd3+ {[%emt 0:00:12]} 32. Kc1 {[%emt 0:01:20]} Bd8 {[%emt 0:00:16]} 33. Qe5+ {[%emt 0:01:04]} Be7 {[%emt 0:01:21]} 34. Qh8+ {[%emt 0:01:29]} Bf8 {[%emt 0:00:04]} 35. Qe5+ {[%emt 0:01:00]} Be7 {[%emt 0:00:02]} 36. Qh8+ {normal} 1/2-1/2